bitfinex/quotes_SOLUSD_20260203
["timestamp","ask_amount","ask_price","bid_price","bid_amount"]
[1770096497641,13.9652209,104.1,104.07,7.89312597]
[1770096499034,13.9652209,104.1,104.07,4.33782526]
[1770096499552,4.35865779,104.09,104.07,4.33782526]
[1770096499755,4.35865779,104.08,104.05,7.89312597]
[1770096500040,4.35865779,104.08,104.05,17.50379426]
[1770096500444,4.35865779,104.08,104.05,7.89312597]
[1770096501128,4.35865779,104.08,104.05,7.8158385]
[1770096501646,4.35865779,104.08,104.06,4.26053779]
[1770096502144,13.96678366,104.08,104.06,4.26053779]
[1770096506849,13.81136681,104.09,104.06,4.26053779]
[1770096507055,13.81136681,104.09,104.06,7.8158385]
[1770096507257,13.81136681,104.09,104.07,4.26053779]
[1770096508042,13.81136681,104.09,104.06,7.8158385]
[1770096508438,13.81136681,104.09,104.06,7.81198623]
[1770096508655,13.81136681,104.09,104.06,4.26053779]
[1770096509963,13.81136681,104.09,104.06,17.42180771]
[1770096510163,4.20381255,104.09,104.07,4.26053779]
[1770096510462,13.81093633,104.09,104.07,4.26053779]
[1770096512262,13.81093633,104.09,104.06,4.26053779]
[1770096515262,4.20381255,104.08,104.05,4.26053779]
[1770096517373,13.81203987,104.08,104.05,4.26053779]
[1770096517668,13.81203987,104.08,104.04,7.81198623]
[1770096517669,4.20381255,104.07,104.04,7.81198623]
[1770096517871,4.20381255,104.07,104.04,4.26053779]
[1770096518072,4.20381255,104.06,104.03,4.26053779]
[1770096519772,4.20381255,104.05,104.02,4.26053779]
[1770096520575,4.20381255,104.04,104.01,4.26053779]
[1770096522270,13.81558701,104.04,104.01,7.81198623]
[1770096523479,4.20381255,104.04,104.01,17.42632622]
[1770096523677,4.20381255,104.04,104.02,4.26053779]
[1770096524375,13.81552962,104.04,104.02,4.26053779]
[1770096524672,13.81552962,104.04,104.01,17.42632622]
[1770096531690,13.81552962,104.04,104.02,4.16872744]
[1770096531878,4.40911536,104.05,104.03,7.72017588]
[1770096532266,14.01990969,104.05,104.03,4.16872744]
[1770096534180,14.01990969,104.05,104.02,13.78218135]
[1770096534382,14.01990969,104.05,104.02,4.16872744]
[1770096534561,4.40911536,104.05,104.02,17.33335167]
[1770096535585,14.01992836,104.05,104.02,17.33335167]
[1770096536268,14.01992836,104.05,104.02,7.72017588]
[1770096536783,14.01992836,104.05,104.02,4.16872744]
[1770096537392,14.01992836,104.05,104.02,7.72017588]
[1770096539491,14.01992836,104.05,104.03,4.16872744]
[1770096539692,14.01853595,104.07,104.04,4.16872744]
[1770096539891,27.5712688,104.09,104.04,3.55144844]
[1770096539892,4.40911536,104.08,104.04,3.55144844]
[1770096540195,4.40911536,104.08,104.04,7.72017588]
[1770096540486,27.5712688,104.09,104.03,9.61260217]
[1770096540487,4.40911536,104.09,104.06,4.16872744]
[1770096540689,4.40911536,104.09,104.07,4.16872744]
[1770096540893,4.40911536,104.08,104.06,4.16872744]
[1770096541489,4.40911536,104.08,104.05,7.72017588]
[1770096541695,4.40911536,104.07,104.05,4.16872744]
[1770096542112,4.40911536,104.07,104.03,17.33224097]
[1770096542292,4.40911536,104.06,104.03,13.78079253]
[1770096542483,4.40911536,104.06,104.03,4.16872744]
[1770096542689,3.55144844,104.06,104.02,4.16872744]
[1770096543207,4.40911536,104.05,104.02,4.16872744]
[1770096543905,14.01991031,104.05,104.02,4.16872744]
[1770096547395,4.40911536,104.04,104.02,4.16872744]
[1770096550727,4.40911536,104.04,104.01,13.78282484]
[1770096551805,4.40911536,104.04,104.01,17.33427328]
[1770096552493,4.40911536,104.04,104.02,4.16872744]
[1770096553216,4.40911536,104.04,104.01,17.33427328]
[1770096560635,4.40911536,104.04,104.01,17.61784508]
[1770096560832,4.40911536,104.04,104.02,4.45229924]
[1770096561029,4.40911536,104.04,104.02,8.00374768]
[1770096563141,4.40911536,104.04,104.02,17.61676244]
[1770096563934,13.91553093,104.05,104.03,4.45229924]
[1770096564714,4.30470261,104.07,104.05,4.45229924]
[1770096564915,4.30470261,104.07,104.05,8.00374768]
[1770096565344,4.30470261,104.08,104.06,8.00374768]
[1770096565522,13.91129894,104.1,104.07,8.00374768]
[1770096568739,13.91129894,104.1,104.08,3.55144844]
[1770096569646,13.91129894,104.1,104.07,8.00374768]
[1770096570437,13.91129894,104.1,104.07,8.00253787]
[1770096570839,13.91036449,104.11,104.09,4.45229924]
[1770096571532,4.30470261,104.1,104.07,8.00253787]
[1770096572143,4.30470261,104.1,104.08,8.00253787]
[1770096572519,4.30470261,104.1,104.08,3.55023863]
[1770096572724,13.91085333,104.1,104.08,3.55023863]
[1770096574643,13.91085333,104.1,104.07,8.00253787]
[1770096574845,4.30470261,104.09,104.06,8.00253787]
[1770096577369,13.9123131,104.09,104.06,8.00253787]
[1770096588347,13.9123131,104.09,104.07,4.45229924]
[1770096589256,13.9123131,104.09,104.06,8.00253787]
[1770096594469,4.21931537,104.08,104.06,4.45229924]
[1770096595046,4.21931537,104.08,104.06,8.00253787]
[1770096595664,33.62151776,104.1,104.06,8.00253787]
[1770096595858,4.21931537,104.09,104.06,8.00253787]
[1770096597066,4.21931537,104.09,104.07,4.4754721]
[1770096597566,13.82643176,104.09,104.07,4.4754721]
[1770096597863,13.82643176,104.09,104.06,8.02571073]
[1770096599749,13.82643176,104.09,104.06,17.63545775]
[1770096600466,13.82643176,104.09,104.06,8.02571073]
[1770096600664,13.82643176,104.09,104.05,9.61024093]
[1770096600665,4.21931537,104.08,104.04,17.63699423]
[1770096600863,4.21931537,104.04,104.0,14.09044173]
[1770096601161,4.21931537,104.03,104.0,17.64068036]
[1770096601560,4.21931537,104.04,104.01,4.4754721]
[1770096601742,4.21931537,104.05,104.02,3.55023863]
[1770096601944,4.21931537,104.05,104.03,4.4754721]
[1770096602364,13.82958447,104.06,104.03,8.02571073]
[1770096602870,4.21931537,104.05,104.03,8.02571073]
[1770096603083,4.21931537,104.05,104.03,4.4754721]
[1770096604860,4.21931537,104.05,104.03,8.02571073]
[1770096606078,4.21931537,104.05,104.03,4.4754721]
[1770096606257,4.21931537,104.04,104.02,4.4754721]
[1770096606977,4.21931537,104.04,104.02,14.08885727]
[1770096607365,4.21931537,104.04,104.01,14.08962258]
[1770096607565,4.21931537,104.04,104.01,17.63986121]
[1770096607981,4.21931537,104.04,104.02,4.4754721]
[1770096608272,9.60942521,104.07,104.04,4.4754721]
[1770096608474,4.21931537,104.06,104.03,8.02571073]
[1770096608676,4.21931537,104.06,104.03,4.4754721]
[1770096609384,4.21931537,104.05,104.03,4.4754721]
[1770096611477,4.21931537,104.05,104.03,8.02571073]
[1770096611687,4.21931537,104.05,104.03,4.4754721]
[1770096611866,13.82941284,104.06,104.03,4.4754721]
[1770096612983,4.21931537,104.08,104.05,4.4754721]
[1770096613160,4.21931537,104.08,104.05,8.02571073]
[1770096613563,4.21931537,104.08,104.06,4.4754721]
[1770096614868,4.21931537,104.08,104.05,8.02571073]
[1770096615066,4.21931537,104.07,104.05,8.02571073]
[1770096615266,4.21931537,104.07,104.04,4.4754721]
[1770096617086,4.21931537,104.07,104.04,13.16191818]
[1770096617276,13.82772157,104.08,104.05,4.4754721]
[1770096621786,13.87347465,104.08,104.05,4.4754721]
[1770096622980,13.87347465,104.08,104.04,13.16179318]
[1770096622981,4.26506845,104.07,104.04,7.80551249]
[1770096624497,13.87423011,104.07,104.05,4.25527386]
[1770096624675,13.87340765,104.08,104.05,4.25527386]
[1770096624874,13.87248102,104.09,104.07,4.25527386]
[1770096625186,9.60741257,104.09,104.08,4.25527386]
[1770096625593,9.60741257,104.09,104.07,7.80551249]
[1770096625786,13.87248102,104.09,104.07,7.80551249]
[1770096626198,13.87248102,104.09,104.07,4.25527386]
[1770096626574,13.87248102,104.09,104.07,7.80551249]
[1770096626774,13.87152041,104.1,104.08,4.25527386]
[1770096630385,31.83796248,104.12,104.1,4.25527386]
[1770096630386,13.86983575,104.12,104.1,4.25527386]
[1770096630594,13.86983575,104.12,104.1,7.80551249]
[1770096630971,9.8036382,104.13,104.11,7.80551249]
[1770096631197,9.8036382,104.13,104.11,4.25527386]
[1770096631497,14.06870665,104.13,104.1,7.80551249]
[1770096632310,4.26506845,104.12,104.09,7.80551249]
[1770096632518,4.26506845,104.12,104.09,7.80466401]
[1770096633801,14.06870665,104.13,104.1,7.80466401]
[1770096635912,4.26506845,104.12,104.1,7.80466401]
[1770096638203,14.06870665,104.13,104.1,7.80466401]
[1770096638817,0.2,104.13,104.12,4.25527386]
[1770096638996,0.2,104.13,104.11,7.80466401]
[1770096639197,14.06851653,104.13,104.11,4.25527386]
[1770096639514,14.06851653,104.13,104.1,7.80466401]
[1770096640927,4.26506845,104.11,104.08,13.86283395]
[1770096641214,4.26506845,104.11,104.09,4.25527386]
[1770096645920,4.26506845,104.1,104.06,7.80466401]
[1770096646224,4.26506845,104.09,104.05,17.41498009]
[1770096646399,4.26506845,104.09,104.05,7.80466401]
[1770096646598,4.26506845,104.09,104.05,4.25527386]
[1770096646599,4.26506845,104.08,104.05,4.25527386]
[1770096647111,4.26506845,104.08,104.05,17.41541455]
[1770096647318,4.26506845,104.08,104.06,4.25527386]
[1770096647618,4.26506845,104.08,104.06,7.80466401]
[1770096648118,13.87270424,104.09,104.07,4.25527386]
[1770096649123,37.88696752,104.1,104.07,7.80466401]
[1770096649323,13.87121638,104.1,104.07,7.80466401]
[1770096649501,4.26506845,104.1,104.07,17.4135605]
[1770096650109,4.26506845,104.1,104.08,4.3592899]
[1770096651922,13.87125913,104.1,104.08,4.3592899]
[1770096657926,13.87125913,104.1,104.07,4.49333364]
[1770096658133,4.27218632,104.09,104.07,4.49333364]
[1770096658325,4.27218632,104.09,104.06,4.49333364]
[1770096659315,4.27218632,104.09,104.06,14.10314477]
[1770096660235,37.89374683,104.1,104.07,4.49333364]
[1770096660435,4.27218632,104.1,104.08,4.49333364]
[1770096660738,4.27218632,104.1,104.07,8.04272379]
[1770096660917,13.87783483,104.11,104.08,4.49333364]
[1770096661234,13.87783483,104.11,104.08,8.04272379]
[1770096661431,24.01220185,104.12,104.06,33.63441232]
[1770096661432,13.87663579,104.12,104.09,8.04272379]
[1770096661631,4.27218632,104.12,104.1,4.49333364]
[1770096662426,13.87654448,104.12,104.1,4.49333364]
[1770096663216,13.87654448,104.12,104.09,8.04272379]
[1770096663542,13.87661982,104.12,104.09,8.04272379]
[1770096663709,13.87661982,104.12,104.1,4.49333364]
[1770096664114,13.87661982,104.12,104.09,4.49333364]
[1770096664545,13.87661982,104.12,104.1,4.49333364]
[1770096665931,13.87661982,104.12,104.09,8.04272379]
[1770096666130,13.87661982,104.12,104.06,4.49333364]
[1770096666131,4.27218632,104.09,104.06,4.49333364]
[1770096667023,4.27218632,104.06,104.03,4.49333364]
[1770096667424,7.82157647,104.06,104.03,4.49333364]
[1770096668226,17.43177397,104.06,104.03,4.49333364]
[1770096668442,4.27218632,104.05,104.02,4.49333364]
[1770096668742,7.82157647,104.05,104.02,4.49333364]
[1770096669842,4.27218632,104.05,104.02,14.10666355]
[1770096670221,4.27218632,104.05,104.02,17.6560537]
[1770096670540,4.27218632,104.05,104.03,4.49333364]
[1770096671034,4.27527085,104.09,104.04,4.49333364]
[1770096671035,7.82157647,104.08,104.04,4.49333364]
[1770096671240,4.27218632,104.07,104.04,4.49333364]
[1770096671945,13.88116477,104.07,104.04,4.49333364]
[1770096672721,13.88060067,104.08,104.05,4.49333364]
[1770096674749,9.6070708,104.09,104.05,9.61046107]
[1770096675045,37.16651195,104.12,104.08,4.49333364]
[1770096675226,13.87698879,104.12,104.09,4.49333364]
[1770096677837,4.27218632,104.11,104.09,4.49333364]
[1770096678342,13.87698879,104.12,104.09,4.49333364]
[1770096678646,14.07606449,104.13,104.1,4.49333364]
[1770096678827,14.07606449,104.13,104.1,8.04272379]
[1770096679027,4.47218632,104.13,104.1,8.04272379]
[1770096679424,14.07568037,104.13,104.1,8.04272379]
[1770096682855,14.07568037,104.13,104.09,9.60667363]
[1770096682856,4.11129757,104.12,104.09,4.09798039]
[1770096683935,13.71613512,104.12,104.09,4.09798039]
[1770096687149,13.71613512,104.12,104.09,7.64737054]
[1770096688053,13.91514544,104.13,104.1,4.09798039]
[1770096688353,13.91514544,104.13,104.1,7.64737054]
[1770096688556,13.91514544,104.13,104.1,4.09798039]
[1770096689351,13.71562338,104.12,104.1,4.09798039]
[1770096689845,0.2,104.13,104.1,4.09798039]
[1770096689846,13.91518036,104.13,104.1,4.09798039]
[1770096690358,4.11129757,104.12,104.1,4.09798039]
[1770096691337,13.71565267,104.12,104.1,4.09798039]
[1770096691846,4.11129757,104.11,104.09,4.09798039]
[1770096692068,4.11129757,104.11,104.07,13.157847]
[1770096692254,4.11129757,104.11,104.07,4.09798039]
[1770096693059,4.11129757,104.11,104.07,17.25787155]
[1770096693262,4.11129757,104.11,104.08,4.09798039]
[1770096693464,13.71710626,104.11,104.08,4.09798039]
[1770096698374,13.71710626,104.11,104.09,4.09798039]
[1770096698375,9.60580869,104.11,104.09,4.09798039]
[1770096699169,9.60482822,104.12,104.1,4.09798039]
[1770096699566,0.2,104.13,104.11,4.09798039]
[1770096699765,0.2,104.13,104.12,7.64898254]
[1770096703187,0.2,104.13,104.09,4.09798039]
[1770096703188,4.31129757,104.13,104.09,4.09798039]
[1770096703474,4.31129757,104.13,104.1,4.09798039]
[1770096703874,4.11129757,104.11,104.08,4.09798039]
[1770096704469,4.11129757,104.11,104.08,7.64898254]
[1770096704676,4.11129757,104.12,104.09,4.09798039]
[1770096704876,13.91481022,104.13,104.1,4.09798039]
[1770096705465,4.11129757,104.12,104.1,4.09798039]
[1770096706660,4.11129757,104.12,104.09,4.09798039]
[1770096706977,4.11129757,104.11,104.08,4.09798039]
[1770096707182,13.7174455,104.1,104.07,4.09798039]
[1770096707361,4.11129757,104.1,104.07,13.70679345]
[1770096707681,13.15668967,104.11,104.08,4.09798039]
[1770096707682,13.71698509,104.11,104.08,4.09798039]
[1770096713077,9.60568752,104.11,104.08,4.09798039]
[1770096713283,4.05195848,104.1,104.08,4.09798039]
[1770096714964,9.60568752,104.11,104.08,4.09798039]
[1770096715164,13.657646,104.11,104.08,4.09798039]
[1770096716585,4.05195848,104.11,104.09,4.15911412]
[1770096716884,13.85580004,104.13,104.1,4.15911412]
[1770096717089,4.05195848,104.12,104.1,4.15911412]
[1770096717281,13.65628761,104.12,104.09,7.71011627]
[1770096717481,4.05195848,104.11,104.09,4.15911412]
[1770096719789,13.65722397,104.11,104.09,4.15911412]
[1770096721794,13.65722397,104.11,104.08,4.15911412]
[1770096721995,4.05195848,104.1,104.07,17.31862216]
[1770096722174,4.05195848,104.1,104.07,4.15911412]
[1770096722376,4.25195848,104.13,104.1,4.15911412]
[1770096722682,4.25195848,104.13,104.1,7.13603495]
[1770096723491,0.2,104.13,104.11,3.55100215]
[1770096723906,4.25195848,104.13,104.1,3.55100215]
[1770096724595,4.25195848,104.13,104.11,7.71011627]
[1770096724982,0.2,104.15,104.13,4.15911412]
[1770096725274,0.2,104.15,104.14,4.15911412]
[1770096725494,13.65211453,104.17,104.14,7.71011627]
[1770096725693,4.05195848,104.16,104.13,7.71011627]
[1770096725876,13.65263711,104.16,104.13,4.15911412]
[1770096726078,13.65263711,104.16,104.13,7.71011627]
[1770096726299,9.60014289,104.17,104.15,4.15911412]
[1770096726481,4.25195848,104.18,104.15,7.71011627]
[1770096726482,13.85078083,104.18,104.15,7.71011627]
[1770096726686,13.85078083,104.18,104.15,4.15911412]
[1770096727091,4.05195848,104.17,104.15,4.15911412]
[1770096727490,13.85078083,104.18,104.15,4.15911412]
[1770096729486,13.85078083,104.18,104.16,4.15911412]
[1770096729487,9.79882235,104.18,104.16,4.15911412]
[1770096730009,13.85078083,104.18,104.15,4.15911412]
[1770096730306,4.05195848,104.17,104.14,4.15911412]
[1770096731293,9.79882235,104.18,104.15,4.15911412]
[1770096731504,13.85078083,104.18,104.15,4.15911412]
[1770096731908,13.85078083,104.18,104.15,7.71011627]
[1770096732204,13.85078083,104.18,104.16,4.15911412]
[1770096732408,3.55100215,104.2,104.16,4.15911412]
[1770096734101,37.14347743,104.19,104.15,4.15911412]
[1770096734413,41.19543591,104.19,104.15,4.15911412]
[1770096735211,4.05195848,104.16,104.13,4.15911412]
[1770096735519,7.60296063,104.16,104.13,4.15911412]
[1770096736317,9.60153624,104.15,104.13,4.15911412]
[1770096737618,4.05195848,104.14,104.1,7.71011627]
[1770096737823,7.60296063,104.12,104.08,48.34336479]
[1770096738201,13.65718372,104.11,104.08,48.34336479]
[1770096739415,7.60296063,104.1,104.08,44.18425067]
[1770096740411,4.05195848,104.1,104.08,44.18425067]
[1770096740626,7.60296063,104.1,104.08,44.18425067]
[1770096741416,9.6070708,104.09,104.05,13.16131397]
[1770096743311,9.6070708,104.09,104.06,4.08808026]
[1770096743506,17.20955724,104.1,104.06,13.69791917]
[1770096746124,17.20955724,104.1,104.07,4.08808026]
[1770096746914,13.65855509,104.1,104.07,4.08808026]
[1770096747113,17.20955724,104.1,104.07,4.08808026]
[1770096751952,7.99675676,104.08,104.05,4.08808026]
[1770096752136,7.99675676,104.07,104.04,4.08808026]
[1770096753528,4.44575461,104.05,104.03,4.08808026]
[1770096754043,4.44575461,104.05,104.02,4.28808026]
[1770096754044,17.60757514,104.05,104.02,4.28808026]
[1770096754516,17.61213825,104.05,104.02,4.28808026]
[1770096756823,8.00131987,104.05,104.02,13.90157967]
[1770096757138,8.00131987,104.05,104.0,36.5479963]
[1770096757139,4.44575461,104.02,104.0,36.5479963]
[1770096757446,8.00131987,104.01,103.98,4.08808026]
[1770096758312,17.61580954,104.01,103.98,4.08808026]
[1770096759930,14.05967382,104.02,103.99,4.08808026]
[1770096760235,4.44575461,104.03,104.0,4.08808026]
[1770096760814,14.05849899,104.03,104.0,4.08808026]
[1770096762142,8.72102546,104.05,104.01,4.08808026]
[1770096762325,17.61164986,104.06,104.02,4.08808026]
[1770096762525,14.0560846,104.06,104.03,4.08808026]
[1770096764321,17.61164986,104.06,104.03,4.08808026]
[1770096764841,14.0560846,104.06,104.03,4.08808026]
[1770096765660,4.44575461,104.05,104.02,7.64364552]
[1770096765954,4.44575461,104.05,104.02,4.08808026]
[1770096767249,14.05677922,104.05,104.02,4.08808026]
[1770096767453,9.61102461,104.05,104.02,3.55556526]
[1770096767756,9.61102461,104.05,104.03,4.08808026]
[1770096772637,14.05589285,104.06,104.03,4.08808026]
[1770096780160,14.05589285,104.06,104.03,13.70064329]
[1770096780660,14.05589285,104.06,104.03,4.08808026]
[1770096781456,17.97313416,104.07,104.04,4.32600287]
[1770096781660,9.60928195,104.07,104.05,4.32600287]
[1770096783750,4.08858136,104.07,104.05,4.32600287]
[1770096785666,4.08858136,104.05,104.02,4.32600287]
[1770096785963,3.55556526,104.05,104.0,13.17043339]
[1770096786144,3.55556526,104.05,103.97,32.16086188]
[1770096786145,3.55556526,104.03,103.99,13.94180318]
[1770096786543,4.08858136,104.03,104.0,4.32600287]
[1770096787763,3.55556526,104.04,104.0,4.32600287]
[1770096787764,13.70044356,104.04,104.01,4.32600287]
[1770096791762,4.08858136,104.02,103.99,13.94181157]
[1770096791953,4.08858136,104.02,103.99,9.6158087]
[1770096792155,4.08858136,104.02,104.0,4.32600287]
[1770096792766,7.64414662,104.01,103.98,4.32600287]
[1770096793066,4.08858136,104.01,103.98,4.32600287]
[1770096793473,13.70319492,104.01,103.98,4.32600287]
[1770096794374,13.7022379,104.02,103.99,4.32600287]
[1770096794548,13.70130294,104.03,104.0,4.32600287]
[1770096795069,8.36385221,104.05,104.02,4.32600287]
[1770096795442,4.08858136,104.04,104.01,7.88156813]
[1770096795867,17.97508259,104.05,104.02,4.32600287]
[1770096796067,4.08858136,104.04,104.01,7.88156813]
[1770096796469,17.97508259,104.05,104.02,4.32600287]
[1770096797345,13.69981174,104.05,104.02,4.32600287]
[1770096797553,9.61023225,104.06,104.03,4.32600287]
[1770096797770,13.69881361,104.06,104.03,7.88156813]
[1770096798251,13.69881361,104.06,104.03,4.32600287]
[1770096798671,68.68066862,104.1,104.06,4.32600287]
[1770096798672,4.08858136,104.09,104.06,4.32600287]
[1770096798853,13.69622276,104.09,104.06,7.88156813]
[1770096803579,6.23392275,104.11,104.08,4.37271481]
[1770096803760,6.23392275,104.11,104.08,7.92828007]
[1770096804074,6.23392275,104.11,104.09,7.92828007]
[1770096804979,6.23392275,104.11,104.1,7.92828007]
[1770096806874,6.23392275,104.11,104.1,4.37271481]
[1770096807275,6.23392275,104.11,104.1,7.92828007]
[1770096808875,6.23392275,104.11,104.1,4.37271481]
[1770096809677,13.71911147,104.14,104.11,4.37271481]
[1770096810075,4.11618575,104.13,104.1,7.92828007]
[1770096813986,9.60345551,104.13,104.11,4.37271481]
[1770096814167,4.11618575,104.14,104.11,4.37271481]
[1770096814966,4.11618575,104.13,104.1,4.37271481]
[1770096816386,13.71988817,104.13,104.1,4.37271481]
[1770096816778,4.11618575,104.12,104.1,4.37271481]
[1770096818176,13.71988817,104.13,104.1,7.92183438]
[1770096818694,13.71988817,104.13,104.1,4.37271481]
[1770096822783,4.11618575,104.12,104.08,13.9803966]
[1770096822979,7.66530532,104.11,104.08,4.37271481]
[1770096823479,4.11618575,104.11,104.08,4.37271481]
[1770096823780,7.66530532,104.11,104.08,4.37271481]
[1770096824189,4.11618575,104.1,104.08,4.37271481]
[1770096824396,4.11618575,104.1,104.06,13.15851582]
[1770096824397,17.27198856,104.1,104.07,4.37271481]
[1770096824690,13.72286899,104.1,104.07,4.37271481]
[1770096826009,4.11618575,104.08,104.05,13.98299317]
[1770096826286,4.11618575,104.08,104.05,4.37271481]
[1770096826492,13.72447845,104.08,104.05,4.37271481]
[1770096826676,17.27359802,104.08,104.05,4.37271481]
[1770096826878,7.66530532,104.07,104.04,4.37271481]
[1770096827079,7.66530532,104.05,104.03,4.37271481]
[1770096828891,7.66530532,104.05,104.02,4.37271481]
[1770096829083,17.27608823,104.05,104.02,4.37271481]
[1770096830491,7.66530532,104.05,104.02,13.98618439]
[1770096832374,13.88473925,104.07,104.04,4.30384494]
[1770096832878,18.21601083,104.07,104.04,4.30384494]
[1770096833891,21.7651304,104.07,104.04,4.30384494]
[1770096835896,7.88039115,104.06,104.03,4.30384494]
[1770096836101,4.33127158,104.04,104.01,4.30384494]
[1770096836298,7.88039115,104.04,104.01,4.30384494]
[1770096836680,3.54911957,104.04,104.01,4.30384494]
[1770096837100,13.94294514,104.05,104.01,4.30384494]
[1770096837101,17.49206471,104.05,104.01,4.30384494]
[1770096837403,9.61167356,104.05,104.02,4.30384494]
[1770096837783,13.94144677,104.06,104.03,4.30384494]
[1770096837984,3.54911957,104.08,104.04,4.30384494]
[1770096838500,3.54911957,104.08,104.04,7.85296451]
[1770096838501,4.33127158,104.08,104.04,7.85296451]
[1770096838694,4.33127158,104.07,104.04,4.30384494]
[1770096838892,13.94068175,104.07,104.04,4.30384494]
[1770096839285,4.33127158,104.06,104.03,4.30384494]
[1770096839486,7.88039115,104.06,104.03,4.30384494]
[1770096840508,4.33127158,104.06,104.03,4.30384494]
[1770096841602,13.94120395,104.06,104.03,4.30384494]
[1770096841804,13.94058954,104.07,104.04,4.30384494]
[1770096842002,17.48970911,104.07,104.04,4.30384494]
[1770096843292,13.94058954,104.07,104.04,4.30384494]
[1770096845314,4.33127158,104.06,104.04,4.30384494]
[1770096845807,17.48970911,104.07,104.04,4.30384494]
[1770096847708,13.94058954,104.07,104.04,4.30384494]
[1770096853111,17.48880013,104.08,104.05,4.30384494]
[1770096853295,4.33127158,104.09,104.06,4.30384494]
[1770096853498,4.33127158,104.08,104.05,4.30384494]
[1770096853818,7.88039115,104.08,104.05,4.30384494]
[1770096854314,4.33127158,104.08,104.05,4.30384494]
[1770096855221,13.93974691,104.08,104.05,4.30384494]
[1770096856917,4.33127158,104.07,104.05,4.30384494]
[1770096857217,13.93974691,104.08,104.05,4.30384494]
[1770096858818,4.33127158,104.07,104.04,13.91546653]
[1770096859612,13.94029793,104.07,104.04,13.91546653]
[1770096859910,4.33127158,104.05,104.03,13.91627855]
[1770096860118,4.33127158,104.05,104.03,4.30384494]
[1770096860423,4.2159406,104.04,104.01,14.1012487]
[1770096863025,4.2159406,104.04,104.01,4.48696191]
[1770096863026,17.377267,104.04,104.01,4.48696191]
[1770096863512,4.2159406,104.03,104.01,4.48696191]
[1770096864223,17.377267,104.04,104.01,4.48696191]
[1770096864821,4.2159406,104.02,103.99,14.20298338]
[1770096865018,7.76506017,104.02,103.99,4.58696191]
[1770096865613,4.2159406,104.01,103.99,0.1]
[1770096866305,17.37777537,104.03,104.0,4.48696191]
[1770096866702,13.16183477,104.03,104.0,4.48696191]
[1770096867005,17.37777537,104.03,104.0,4.48696191]
[1770096867806,13.8286558,104.03,104.0,4.48696191]
[1770096869425,4.2159406,104.05,104.02,4.48696191]
[1770096870424,13.82721055,104.05,104.02,4.48696191]
[1770096870625,9.61126995,104.05,104.02,4.48696191]
[1770096870831,13.82612773,104.06,104.03,4.48696191]
[1770096872809,13.82511824,104.07,104.04,4.48696191]
[1770096873412,4.2159406,104.06,104.04,4.48696191]
[1770096875829,9.60917764,104.07,104.04,4.48696191]
[1770096876033,13.82511824,104.07,104.04,4.48696191]
[1770096876527,13.82511824,104.07,104.04,8.03608148]
[1770096876910,13.82511824,104.07,104.04,3.54911957]
[1770096877115,13.82511824,104.07,104.05,4.48696191]
[1770096877316,13.82511824,104.07,104.04,8.03608148]
[1770096878429,13.82511824,104.07,104.04,3.55292098]
[1770096878628,13.82511824,104.07,104.05,4.48696191]
[1770096879221,13.82511824,104.07,104.04,8.03988289]
[1770096879727,4.2159406,104.07,104.04,8.03988289]
[1770096879917,13.82326609,104.09,104.06,4.48696191]
[1770096880228,9.60732549,104.09,104.07,4.48696191]
[1770096880432,13.82326609,104.09,104.07,4.48696191]
[1770096881015,13.82326609,104.09,104.06,8.03988289]
[1770096881534,4.2159406,104.11,104.08,8.03988289]
[1770096881835,4.2159406,104.11,104.08,17.64758899]
[1770096884039,9.6036592,104.13,104.11,4.48696191]
[1770096884225,13.81866217,104.14,104.11,4.48696191]
[1770096884622,13.81774502,104.15,104.12,8.03988289]
[1770096885123,4.2159406,104.14,104.11,4.48696191]
[1770096886642,4.2159406,104.14,104.11,17.64500953]
[1770096888240,4.2159406,104.14,104.11,14.09208855]
[1770096888437,13.15571957,104.14,104.1,14.09266137]
[1770096888645,4.2159406,104.13,104.1,14.09266137]
[1770096889823,4.2159406,104.12,104.1,4.48696191]
[1770096890019,4.2159406,104.12,104.09,13.15966207]
[1770096890215,4.2159406,104.12,104.09,17.43266511]
[1770096891149,4.2159406,104.12,104.1,4.14270047]
[1770096891643,4.36551659,104.11,104.08,4.14270047]
[1770096891825,7.91843757,104.11,104.08,4.14270047]
[1770096892627,7.91843757,104.11,104.08,13.75069014]
[1770096893440,7.91843757,104.11,104.08,4.14270047]
[1770096893646,17.52406858,104.11,104.08,4.14270047]
[1770096893825,4.36551659,104.1,104.07,13.75156318]
[1770096895445,4.36551659,104.09,104.07,4.14270047]
[1770096896943,4.36551659,104.09,104.06,9.60976081]
[1770096897129,13.97264658,104.09,104.06,13.75246128]
[1770096898932,17.52556756,104.09,104.06,4.14270047]
[1770096899430,4.36551659,104.12,104.07,4.14270047]
[1770096899623,4.36551659,104.11,104.08,4.14270047]
[1770096900352,9.60461252,104.12,104.09,4.14270047]
[1770096900528,13.96935872,104.13,104.1,4.14270047]
[1770096900729,3.55292098,104.14,104.11,4.14270047]
[1770096900730,4.36551659,104.14,104.11,4.14270047]
[1770096900933,13.96825162,104.14,104.11,4.14270047]
[1770096901227,9.60202452,104.15,104.13,4.14270047]
[1770096902067,14.16656564,104.16,104.13,4.14270047]
[1770096903232,9.80104905,104.16,104.12,3.55292098]